[Event "25th European Club Cup Women 2021"]
[Site "Struga"]
[Date "2021.09.19"]
[Round "2.10"]
[White "Cvitan, Ena"]
[Black "Abdumalik, Zhansaya"]
[Result "0-1"]
[ECO "D87"]
[WhiteElo "2284"]
[BlackElo "2502"]
[Annotator "ChessBase"]
[PlyCount "66"]
[EventDate "2021.09.18"]
[EventType "team-tourn"]
[EventCountry "MKD"]
[SourceTitle "playchess.com"]
[Source "ChessBase"]
[SourceQuality "1"]
[TimeControl "40/5400+30:1800+30"]

1. d4 {[%emt 0:00:09]} Nf6 {[%emt 0:00:08]} 2. c4 {[%emt 0:00:11]} g6 {[%emt 0:
01:07]} 3. Nc3 {[%emt 0:00:16]} d5 {[%emt 0:00:11]} 4. cxd5 {[%emt 0:00:09]}
Nxd5 {[%emt 0:00:05]} 5. e4 {[%emt 0:00:05]} Nxc3 {[%emt 0:00:05]} 6. bxc3 {
[%emt 0:00:06]} Bg7 {[%emt 0:00:06]} 7. Bc4 {[%emt 0:00:06]} c5 {[%emt 0:00:35]
} 8. Ne2 {[%emt 0:00:15]} O-O {[%emt 0:00:14]} 9. Be3 {[%emt 0:00:42]} Nc6 {
[%emt 0:00:37]} 10. h4 {[%emt 0:00:06]} h6 {[%emt 0:08:31]} 11. h5 {[%emt 0:17:
51]} g5 {[%emt 0:00:46]} 12. O-O {[%emt 0:01:18]} Bg4 {[%emt 0:02:51]} 13. f3 {
[%emt 0:04:16]} Bxh5 {[%emt 0:00:58]} 14. dxc5 {[%emt 0:09:24]} Qc7 {[%emt 0:
03:13]} 15. Qc2 {[%emt 0:00:25]} Ne5 {[%emt 0:01:23]} 16. Bb3 {[%emt 0:05:08]}
Nd7 {[%emt 0:00:47]} 17. c6 {[%emt 0:06:10]} bxc6 {[%emt 0:05:00]} 18. Nd4 {
[%emt 0:02:02]} e6 {[%emt 0:01:42]} 19. Rad1 {[%emt 0:09:25]} Ne5 {[%emt 0:01:
55]} 20. c4 {[%emt 0:03:15]} a5 {[%emt 0:09:26]} 21. Ba4 {[%emt 0:05:46]} Rab8
{[%emt 0:00:43]} 22. a3 {[%emt 0:00:27]} Rfd8 {[%emt 0:02:41]} 23. Kf2 {
[%emt 0:04:36]} Rb7 {[%emt 0:09:36]} 24. Rh1 {[%emt 0:01:06]} Rdb8 {[%emt 0:00:
31]} 25. Nb3 {[%emt 0:01:51]} Bg6 {[%emt 0:00:46]} 26. Rd2 {[%emt 0:03:39]} Bf8
{[%emt 0:02:31]} 27. c5 {[%emt 0:07:01]} Bg7 {[%emt 0:03:20]} 28. Rd6 {[%emt 0:
03:06]} f5 {[%emt 0:06:56]} 29. Bd4 {[%emt 0:03:04]} fxe4 {[%emt 0:03:32]} 30.
fxe4 {[%emt 0:01:26]} Ng4+ {[%emt 0:02:35]} 31. Kg3 {[%emt 0:01:05]} Qf7 {
[%emt 0:00:32]} 32. Kh3 {[%emt 0:03:36]} Bxd4 {[%emt 0:01:20]} 33. Rxd4 {
[%emt 0:00:29]} e5 {[%emt 0:02:47]} 0-1

[Event "25th European Club Cup Women 2021"]
[Site "Struga"]
[Date "2021.09.19"]
[Round "2.11"]
[White "Muzychuk, Mariya"]
[Black "Urh, Zala"]
[Result "1-0"]
[ECO "B31"]
[WhiteElo "2540"]
[BlackElo "2234"]
[Annotator "ChessBase"]
[PlyCount "65"]
[EventDate "2021.09.18"]
[EventType "team-tourn"]
[EventCountry "MKD"]
[SourceTitle "playchess.com"]
[Source "ChessBase"]
[SourceQuality "1"]
[TimeControl "40/5400+30:1800+30"]

1. e4 {[%emt 0:00:03]} c5 {[%emt 0:00:23]} 2. Nf3 {[%emt 0:00:24]} Nc6 {
[%emt 0:00:15]} 3. Bb5 {[%emt 0:00:43]} g6 {[%emt 0:00:17]} 4. Bxc6 {[%emt 0:
00:32]} dxc6 {[%emt 0:00:11]} 5. d3 {[%emt 0:00:09]} Bg7 {[%emt 0:00:18]} 6. h3
{[%emt 0:00:19]} Qc7 {[%emt 0:00:48]} 7. Nc3 {[%emt 0:00:17]} e5 {[%emt 0:00:
25]} 8. Be3 {[%emt 0:00:19]} b6 {[%emt 0:00:35]} 9. Qd2 {[%emt 0:01:57]} h6 {
[%emt 0:00:19]} 10. O-O-O {[%emt 0:01:14]} f5 {[%emt 0:08:06]} 11. exf5 {
[%emt 0:02:58]} gxf5 {[%emt 0:00:14]} 12. Qe2 {[%emt 0:00:52]} Ne7 {[%emt 0:03:
37]} 13. Rde1 {[%emt 0:04:57]} Ba6 {[%emt 0:09:22]} 14. Bd2 {[%emt 0:15:57]} e4
{[%emt 0:09:37]} 15. Nh4 {[%emt 0:04:06]} O-O-O {[%emt 0:02:39]} 16. Nxe4 {
[%emt 0:01:11]} fxe4 {[%emt 0:09:52]} 17. Qg4+ {[%emt 0:00:15]} Rd7 {[%emt 0:
00:29]} 18. Qxg7 {[%emt 0:01:04]} Rg8 {[%emt 0:00:18]} 19. Qf7 {[%emt 0:04:41]}
Qd8 {[%emt 0:09:21]} 20. Rxe4 {[%emt 0:01:03]} Nd5 {[%emt 0:04:31]} 21. Qe6 {
[%emt 0:02:27]} Kb7 {[%emt 0:00:42]} 22. Qxh6 {[%emt 0:07:11]} c4 {[%emt 0:04:
09]} 23. dxc4 {[%emt 0:03:49]} Nf6 {[%emt 0:01:31]} 24. Re6 {[%emt 0:02:57]}
Bxc4 {[%emt 0:01:18]} 25. Rxf6 {[%emt 0:00:41]} Rxd2 {[%emt 0:00:43]} 26. Qxd2
{[%emt 0:06:53]} Qxf6 {[%emt 0:00:10]} 27. g3 {[%emt 0:00:17]} Bxa2 {[%emt 0:
02:06]} 28. Re1 {[%emt 0:02:33]} a5 {[%emt 0:01:14]} 29. Qe3 {[%emt 0:03:15]}
Ka6 {[%emt 0:02:02]} 30. Ng2 {[%emt 0:05:23]} Rg5 {[%emt 0:01:45]} 31. Nf4 {
[%emt 0:00:39]} Rb5 {[%emt 0:00:22]} 32. Nd3 {[%emt 0:00:09]} a4 {[%emt 0:01:
11]} 33. Qe8 {[%emt 0:02:09]} 1-0

[Event "25th European Club Cup Women 2021"]
[Site "Struga"]
[Date "2021.09.19"]
[Round "2.12"]
[White "Vidic, Teja"]
[Black "Buksa, Nataliya"]
[Result "1/2-1/2"]
[ECO "C81"]
[WhiteElo "2172"]
[BlackElo "2417"]
[Annotator "NA"]
[PlyCount "153"]
[EventDate "2021.09.18"]
[EventType "team-tourn"]
[EventCountry "MKD"]
[SourceTitle "playchess.com"]
[Source "ChessBase"]
[SourceQuality "1"]
[TimeControl "40/5400+30:1800+30"]

1. e4 {[%emt 0:00:05]} e5 {[%emt 0:00:05]} 2. Nf3 {[%emt 0:00:04]} Nc6 {
[%emt 0:00:03]} 3. Bb5 {[%emt 0:00:10]} a6 {[%emt 0:00:04]} 4. Ba4 {[%emt 0:00:
06]} Nf6 {[%emt 0:00:03]} 5. O-O {[%emt 0:00:19]} Nxe4 {[%emt 0:00:05]} 6. d4 {
[%emt 0:00:36]} b5 {[%emt 0:00:05]} 7. Bb3 {[%emt 0:00:05]} d5 {[%emt 0:00:02]}
8. dxe5 {[%emt 0:00:32]} Be6 {[%emt 0:00:04]} 9. Qe2 {[%emt 0:00:05]} Be7 {
[%emt 0:01:39]} 10. Rd1 {[%emt 0:00:05]} O-O {[%emt 0:00:04]} 11. c4 {[%emt 0:
00:04]} bxc4 {[%emt 0:00:02]} 12. Bxc4 {[%emt 0:00:06]} Bc5 {[%emt 0:00:12]}
13. Be3 {[%emt 0:00:20]} Bxe3 {[%emt 0:00:04]} 14. Qxe3 {[%emt 0:00:08]} Qb8 {
[%emt 0:00:08]} 15. Bb3 {[%emt 0:01:29]} Qb6 {[%emt 0:01:00]} 16. Nbd2 {
[%emt 0:02:03]} Rab8 {[%emt 0:28:49]} 17. Rac1 {[%emt 0:08:53]} h6 {[%emt 0:17:
25]} 18. Nxe4 {[%emt 0:05:11]} dxe4 {[%emt 0:06:03]} 19. Qxe4 {[%emt 0:05:19]}
Bxb3 {[%emt 0:00:05]} 20. axb3 {[%emt 0:03:30]} Na5 {[%emt 0:00:17]} 21. h3 {
[%emt 0:07:46]} Nxb3 {[%emt 0:05:24]} 22. Rc6 {[%emt 0:06:37]} Nc5 {[%emt 0:02:
47]} 23. Qd5 {[%emt 0:05:48]} Rbd8 {[%emt 0:00:05]} 24. Rxb6 {[%emt 0:04:35]}
Rxd5 {[%emt 0:00:03]} 25. Rxd5 {[%emt 0:00:09]} cxb6 {[%emt 0:00:02]} 26. Nd4 {
[%emt 0:02:29]} Re8 {[%emt 0:04:48]} 27. Nc6 {[%emt 0:08:15]} Re6 {[%emt 0:00:
04]} 28. Nd8 {[%emt 0:00:57]} Re7 {[%emt 0:00:17]} 29. f4 {[%emt 0:07:38]} Rc7
{[%emt 0:09:58]} 30. Rd6 {[%emt 0:06:43]} b5 {[%emt 0:08:29]} 31. b4 {[%emt 0:
03:06]} Ne4 {[%emt 0:00:04]} 32. Rxa6 {[%emt 0:00:18]} Rc1+ {[%emt 0:00:04]}
33. Kh2 {[%emt 0:00:08]} h5 {[%emt 0:00:17]} 34. e6 {[%emt 0:08:35]} fxe6 {
[%emt 0:05:29]} 35. Rxe6 {[%emt 0:00:07]} Nf6 {[%emt 0:09:16]} 36. Re5 {
[%emt 0:04:12]} h4 {[%emt 0:03:48]} 37. Rxb5 {[%emt 0:03:19]} Rd1 {[%emt 0:01:
08]} 38. Ne6 {[%emt 0:00:58]} Nd5 {[%emt 0:00:16]} 39. Ng5 {[%emt 0:04:38]} g6
{[%emt 0:00:30]} 40. Nf3 {[%emt 0:00:00]} Nxf4 {[%emt 0:00:00]} 41. Nxh4 {
[%emt 0:03:11]} Kf7 {[%emt 0:01:11]} 42. Kg3 {[%emt 0:02:47]} Nd5 {[%emt 0:01:
06]} 43. Nf3 {[%emt 0:07:02]} Ke6 {[%emt 0:00:04]} 44. Rb8 {[%emt 0:01:57]} Rb1
{[%emt 0:00:13]} 45. b5 {[%emt 0:00:56]} Rb2 {[%emt 0:00:11]} 46. Nd4+ {
[%emt 0:02:07]} Ke5 {[%emt 0:00:03]} 47. Nc6+ {[%emt 0:00:23]} Kf5 {[%emt 0:01:
01]} 48. Rf8+ {[%emt 0:02:02]} Ke6 {[%emt 0:00:59]} 49. Rf2 {[%emt 0:03:45]}
Rb3+ {[%emt 0:00:03]} 50. Rf3 {[%emt 0:00:04]} Rb2 {[%emt 0:00:03]} 51. Nd4+ {
[%emt 0:00:50]} Kd6 {[%emt 0:07:09]} 52. Rb3 {[%emt 0:00:35]} Rxb3+ {[%emt 0:
00:20]} 53. Nxb3 {[%emt 0:00:05]} Nc3 {[%emt 0:00:01]} 54. Kg4 {[%emt 0:02:22]}
Nxb5 {[%emt 0:00:58]} 55. Kg5 {[%emt 0:00:05]} Ke7 {[%emt 0:00:24]} 56. Kxg6 {
[%emt 0:00:05]} Kf8 {[%emt 0:00:02]} 57. h4 {[%emt 0:00:17]} Kg8 {[%emt 0:00:
14]} 58. h5 {[%emt 0:00:25]} Nc3 {[%emt 0:00:07]} 59. g4 {[%emt 0:00:40]} Nd5 {
[%emt 0:00:08]} 60. Nd4 {[%emt 0:00:58]} Nf4+ {[%emt 0:00:22]} 61. Kf5 {
[%emt 0:00:32]} Nd5 {[%emt 0:00:16]} 62. g5 {[%emt 0:00:40]} Kg7 {[%emt 0:00:
58]} 63. Ne6+ {[%emt 0:00:16]} Kh7 {[%emt 0:00:04]} 64. g6+ {[%emt 0:01:10]}
Kh6 {[%emt 0:00:04]} 65. Nf4 {[%emt 0:02:42]} Ne3+ {[%emt 0:06:16]} 66. Kf6 {
[%emt 0:01:59]} Ng4+ {[%emt 0:00:04]} 67. Kf7 {[%emt 0:01:31]} Kg5 {[%emt 0:06:
45]} 68. Kg7 {[%emt 0:05:19]} Nh6 {[%emt 0:00:33]} 69. Kh7 {[%emt 0:00:10]} Ng4
{[%emt 0:00:13]} 70. g7 {[%emt 0:02:16]} Kxf4 {[%emt 0:01:03]} 71. Kg6 {
[%emt 0:00:29]} Ne5+ {[%emt 0:00:05]} 72. Kh7 {[%emt 0:01:43]} Ng4 {[%emt 0:01:
10]} 73. Kg6 {[%emt 0:00:12]} Ne5+ {[%emt 0:00:05]} 74. Kf6 {[%emt 0:00:11]}
Ng4+ {[%emt 0:00:17]} 75. Ke7 {[%emt 0:01:17]} Nh6 {[%emt 0:00:06]} 76. Kf6 {
[%emt 0:00:08]} Ng4+ {[%emt 0:00:04]} 77. Kg6 {[%emt 0:00:31]} 1/2-1/2

[Event "25th European Club Cup Women 2021"]
[Site "Struga"]
[Date "2021.09.19"]
[Round "2.14"]
[White "Dzagnidze, Nana"]
[Black "Gunina, Valentina"]
[Result "0-1"]
[ECO "D17"]
[WhiteElo "2525"]
[BlackElo "2446"]
[Annotator "ChessBase"]
[PlyCount "150"]
[EventDate "2021.09.18"]
[EventType "team-tourn"]
[EventCountry "MKD"]
[SourceTitle "playchess.com"]
[Source "ChessBase"]
[SourceQuality "1"]
[TimeControl "40/5400+30:1800+30"]

1. Nf3 {[%emt 0:00:05]} d5 {[%emt 0:00:07]} 2. c4 {[%emt 0:00:18]} c6 {[%emt 0:
00:07]} 3. d4 {[%emt 0:00:18]} Nf6 {[%emt 0:00:09]} 4. Nc3 {[%emt 0:00:10]}
dxc4 {[%emt 0:00:09]} 5. a4 {[%emt 0:00:29]} Bf5 {[%emt 0:00:06]} 6. Ne5 {
[%emt 0:00:42]} Nbd7 {[%emt 0:00:09]} 7. Nxc4 {[%emt 0:00:07]} Nb6 {[%emt 0:00:
05]} 8. Ne5 {[%emt 0:00:05]} a5 {[%emt 0:00:06]} 9. e3 {[%emt 0:00:23]} Nbd7 {
[%emt 0:00:57]} 10. Qb3 {[%emt 0:15:07]} Nxe5 {[%emt 0:00:30]} 11. dxe5 {
[%emt 0:00:03]} Nd7 {[%emt 0:00:05]} 12. e4 {[%emt 0:10:15]} Be6 {[%emt 0:00:
04]} 13. Qxb7 {[%emt 0:00:50]} Rb8 {[%emt 0:00:36]} 14. Qa7 {[%emt 0:04:47]}
Nxe5 {[%emt 0:00:57]} 15. Bf4 {[%emt 0:03:52]} f6 {[%emt 0:00:35]} 16. Be2 {
[%emt 0:04:38]} Qb6 {[%emt 0:05:08]} 17. Qxb6 {[%emt 0:01:02]} Rxb6 {[%emt 0:
00:04]} 18. O-O-O {[%emt 0:01:25]} Bb3 {[%emt 0:04:57]} 19. Rd2 {[%emt 0:01:28]
} e6 {[%emt 0:01:48]} 20. Bxe5 {[%emt 0:15:06]} fxe5 {[%emt 0:00:14]} 21. Bd1 {
[%emt 0:00:02]} Be7 {[%emt 0:06:07]} 22. Bxb3 {[%emt 0:00:57]} Rxb3 {[%emt 0:
06:50]} 23. Kc2 {[%emt 0:00:18]} Rb4 {[%emt 0:00:24]} 24. Rhd1 {[%emt 0:00:24]}
O-O {[%emt 0:00:35]} 25. b3 {[%emt 0:01:26]} Bg5 {[%emt 0:03:09]} 26. Re2 {
[%emt 0:00:01]} Rfb8 {[%emt 0:00:32]} 27. Rb1 {[%emt 0:03:06]} c5 {[%emt 0:00:
39]} 28. f3 {[%emt 0:12:38]} Rc8 {[%emt 0:01:33]} 29. Na2 {[%emt 0:12:01]} Rd4
{[%emt 0:01:02]} 30. Rd1 {[%emt 0:00:17]} c4 {[%emt 0:02:14]} 31. Rxd4 {
[%emt 0:01:33]} cxb3+ {[%emt 0:03:31]} 32. Kxb3 {[%emt 0:00:01]} exd4 {[%emt 0:
00:06]} 33. Rc2 {[%emt 0:01:50]} Rb8+ {[%emt 0:01:44]} 34. Kc4 {[%emt 0:00:06]}
e5 {[%emt 0:00:04]} 35. g3 {[%emt 0:07:43]} h5 {[%emt 0:01:47]} 36. Rg2 {
[%emt 0:01:59]} Be3 {[%emt 0:02:24]} 37. f4 {[%emt 0:00:07]} Kf7 {[%emt 0:01:
29]} 38. h4 {[%emt 0:03:12]} g6 {[%emt 0:00:32]} 39. fxe5 {[%emt 0:00:18]} Ke6
{[%emt 0:00:07]} 40. g4 {[%emt 0:00:00]} Kxe5 {[%emt 0:00:00]} 41. gxh5 {
[%emt 0:00:11]} gxh5 {[%emt 0:00:32]} 42. Kd3 {[%emt 0:00:24]} Rb3+ {[%emt 0:
00:08]} 43. Kc2 {[%emt 0:00:04]} Rb8 {[%emt 0:01:16]} 44. Kd3 {[%emt 0:00:08]}
Bf4 {[%emt 0:01:51]} 45. Rg7 {[%emt 0:04:40]} Rb2 {[%emt 0:02:24]} 46. Re7+ {
[%emt 0:00:23]} Kf6 {[%emt 0:04:21]} 47. Ra7 {[%emt 0:05:57]} Rd2+ {[%emt 0:04:
57]} 48. Kc4 {[%emt 0:00:04]} Rxa2 {[%emt 0:00:05]} 49. Rxa5 {[%emt 0:01:56]}
Be3 {[%emt 0:01:15]} 50. Rxh5 {[%emt 0:02:26]} Rxa4+ {[%emt 0:00:46]} 51. Kd3 {
[%emt 0:00:02]} Ra3+ {[%emt 0:01:29]} 52. Ke2 {[%emt 0:00:02]} Kg6 {[%emt 0:02:
30]} 53. Rd5 {[%emt 0:00:22]} Ra2+ {[%emt 0:01:22]} 54. Kf3 {[%emt 0:01:53]}
Rf2+ {[%emt 0:00:25]} 55. Kg3 {[%emt 0:00:09]} Rf6 {[%emt 0:00:49]} 56. Rd7 {
[%emt 0:01:23]} Re6 {[%emt 0:02:06]} 57. Kf3 {[%emt 0:00:08]} Kh5 {[%emt 0:00:
36]} 58. Rh7+ {[%emt 0:00:46]} Rh6 {[%emt 0:00:50]} 59. Rf7 {[%emt 0:14:42]}
Kg6 {[%emt 0:01:43]} 60. Rf8 {[%emt 0:00:33]} Rxh4 {[%emt 0:00:50]} 61. e5 {
[%emt 0:00:05]} Kg7 {[%emt 0:02:08]} 62. Rf5 {[%emt 0:00:34]} Rh8 {[%emt 0:00:
05]} 63. Ke4 {[%emt 0:00:07]} Rf8 {[%emt 0:00:25]} 64. Rh5 {[%emt 0:00:07]}
Rf4+ {[%emt 0:00:19]} 65. Kd3 {[%emt 0:00:08]} Kf7 {[%emt 0:01:00]} 66. Rh8 {
[%emt 0:01:09]} Ke6 {[%emt 0:00:27]} 67. Re8+ {[%emt 0:00:04]} Kd5 {[%emt 0:00:
03]} 68. e6 {[%emt 0:00:04]} Rf2 {[%emt 0:00:12]} 69. Rd8+ {[%emt 0:00:28]}
Kxe6 {[%emt 0:00:04]} 70. Ke4 {[%emt 0:00:03]} Rh2 {[%emt 0:00:47]} 71. Kd3 {
[%emt 0:00:25]} Rh3 {[%emt 0:00:14]} 72. Ke4 {[%emt 0:00:06]} Bf2 {[%emt 0:00:
23]} 73. Rf8 {[%emt 0:00:18]} Re3+ {[%emt 0:00:17]} 74. Kf4 {[%emt 0:00:02]}
Bg3+ {[%emt 0:00:08]} 75. Kg4 {[%emt 0:00:03]} Be5 {[%emt 0:00:07]} 0-1

[Event "25th European Club Cup Women 2021"]
[Site "Struga"]
[Date "2021.09.19"]
[Round "2.15"]
[White "Badelka, Olga"]
[Black "Cramling, Pia"]
[Result "1-0"]
[ECO "B82"]
[WhiteElo "2422"]
[BlackElo "2455"]
[Annotator "ChessBase"]
[PlyCount "143"]
[EventDate "2021.09.18"]
[EventType "team-tourn"]
[EventCountry "MKD"]
[SourceTitle "playchess.com"]
[Source "ChessBase"]
[SourceQuality "1"]
[TimeControl "40/5400+30:1800+30"]

1. e4 {[%emt 0:00:04]} c5 {[%emt 0:00:17]} 2. Nc3 {[%emt 0:00:14]} Nc6 {
[%emt 0:00:54]} 3. Nf3 {[%emt 0:00:14]} e6 {[%emt 0:02:29]} 4. d4 {[%emt 0:00:
29]} cxd4 {[%emt 0:00:06]} 5. Nxd4 {[%emt 0:00:03]} d6 {[%emt 0:04:13]} 6. f4 {
[%emt 0:07:37]} Nf6 {[%emt 0:01:53]} 7. Be3 {[%emt 0:00:53]} Be7 {[%emt 0:10:
59]} 8. Qf3 {[%emt 0:01:49]} e5 {[%emt 0:09:05]} 9. Nf5 {[%emt 0:07:02]} Bxf5 {
[%emt 0:01:15]} 10. exf5 {[%emt 0:00:03]} Qa5 {[%emt 0:03:08]} 11. O-O-O {
[%emt 0:07:36]} e4 {[%emt 0:04:46]} 12. Nxe4 {[%emt 0:03:13]} Qxa2 {[%emt 0:01:
43]} 13. Nc3 {[%emt 0:01:42]} Qa1+ {[%emt 0:01:07]} 14. Kd2 {[%emt 0:03:30]}
Qa5 {[%emt 0:00:37]} 15. Bb5 {[%emt 0:07:11]} d5 {[%emt 0:15:52]} 16. Ra1 {
[%emt 0:01:53]} Qc7 {[%emt 0:01:21]} 17. Kc1 {[%emt 0:00:55]} O-O {[%emt 0:02:
25]} 18. Rd1 {[%emt 0:04:04]} d4 {[%emt 0:10:46]} 19. Bxd4 {[%emt 0:01:30]}
Nxd4 {[%emt 0:00:07]} 20. Rxd4 {[%emt 0:00:03]} a6 {[%emt 0:02:20]} 21. Bd3 {
[%emt 0:17:37]} Bc5 {[%emt 0:06:53]} 22. Nd5 {[%emt 0:00:10]} Nxd5 {[%emt 0:00:
10]} 23. Rxd5 {[%emt 0:00:03]} Rfe8 {[%emt 0:00:41]} 24. Re5 {[%emt 0:14:28]}
Rxe5 {[%emt 0:01:38]} 25. fxe5 {[%emt 0:00:02]} Qxe5 {[%emt 0:00:06]} 26. Kb1 {
[%emt 0:00:12]} Qe1+ {[%emt 0:12:29]} 27. Ka2 {[%emt 0:00:03]} Qa5+ {[%emt 0:
00:06]} 28. Kb1 {[%emt 0:00:03]} Qe1+ {[%emt 0:00:28]} 29. Ka2 {[%emt 0:00:03]}
Qa5+ {[%emt 0:01:12]} 30. Kb1 {[%emt 0:00:02]} Qb6 {[%emt 0:00:52]} 31. c3 {
[%emt 0:09:58]} Qb3 {[%emt 0:01:32]} 32. Bc2 {[%emt 0:00:54]} Qb6 {[%emt 0:00:
05]} 33. Ka2 {[%emt 0:02:37]} Qa5+ {[%emt 0:01:17]} 34. Kb1 {[%emt 0:00:02]}
Qc7 {[%emt 0:01:09]} 35. Ka2 {[%emt 0:01:25]} Qa5+ {[%emt 0:00:10]} 36. Kb1 {
[%emt 0:00:03]} Qc7 {[%emt 0:00:03]} 37. Ka2 {[%emt 0:00:03]} Be7 {[%emt 0:03:
50]} 38. Rd1 {[%emt 0:01:38]} Bf6 {[%emt 0:00:09]} 39. Rd5 {[%emt 0:04:18]} Re8
{[%emt 0:00:24]} 40. h3 {[%emt 0:00:00]} h6 {[%emt 0:00:00]} 41. Bb3 {[%emt 0:
08:52]} b5 {[%emt 0:08:15]} 42. Qf2 {[%emt 0:02:33]} Qa5+ {[%emt 0:09:17]} 43.
Kb1 {[%emt 0:00:03]} Re7 {[%emt 0:00:24]} 44. Qc5 {[%emt 0:05:24]} Rc7 {
[%emt 0:03:54]} 45. Qe3 {[%emt 0:00:48]} Re7 {[%emt 0:00:38]} 46. Qc5 {[%emt 0:
00:02]} Rc7 {[%emt 0:00:20]} 47. Qe3 {[%emt 0:00:03]} Kh7 {[%emt 0:02:38]} 48.
Qd2 {[%emt 0:07:09]} Qb6 {[%emt 0:07:30]} 49. Rd7 {[%emt 0:00:14]} Qc5 {
[%emt 0:01:06]} 50. g4 {[%emt 0:06:40]} Bg5 {[%emt 0:02:05]} 51. Qd3 {[%emt 0:
00:58]} Rxd7 {[%emt 0:00:11]} 52. Qxd7 {[%emt 0:00:03]} Qe7 {[%emt 0:00:08]}
53. Qxe7 {[%emt 0:00:28]} Bxe7 {[%emt 0:00:02]} 54. Bxf7 {[%emt 0:00:06]} h5 {
[%emt 0:01:08]} 55. Bxh5 {[%emt 0:00:31]} Kh6 {[%emt 0:00:04]} 56. Kc2 {
[%emt 0:04:50]} Kg5 {[%emt 0:00:05]} 57. Kd3 {[%emt 0:00:29]} Kh4 {[%emt 0:00:
10]} 58. Kd4 {[%emt 0:00:45]} Kxh3 {[%emt 0:00:24]} 59. Kd5 {[%emt 0:00:28]} a5
{[%emt 0:00:41]} 60. Kc6 {[%emt 0:01:34]} b4 {[%emt 0:00:16]} 61. Kb5 {[%emt 0:
00:10]} Bf6 {[%emt 0:01:26]} 62. c4 {[%emt 0:02:11]} Bd8 {[%emt 0:00:30]} 63.
c5 {[%emt 0:01:53]} Kh4 {[%emt 0:00:20]} 64. c6 {[%emt 0:00:16]} Kg5 {[%emt 0:
00:29]} 65. b3 {[%emt 0:00:22]} Kf6 {[%emt 0:01:36]} 66. Kc5 {[%emt 0:01:16]}
Bc7 {[%emt 0:00:21]} 67. Be8 {[%emt 0:00:30]} Ke7 {[%emt 0:00:47]} 68. Bd7 {
[%emt 0:00:10]} Kf6 {[%emt 0:00:12]} 69. Be6 {[%emt 0:00:12]} Kg5 {[%emt 0:00:
41]} 70. Kb5 {[%emt 0:00:18]} Kf6 {[%emt 0:00:21]} 71. Ka6 {[%emt 0:00:11]} Ke7
{[%emt 0:00:52]} 72. Kb7 {[%emt 0:00:04]} 1-0

[Event "25th European Club Cup Women 2021"]
[Site "Struga"]
[Date "2021.09.19"]
[Round "2.16"]
[White "Paehtz, Elisabeth"]
[Black "Maltsevskaya, Aleksandra"]
[Result "1/2-1/2"]
[ECO "D78"]
[WhiteElo "2465"]
[BlackElo "2407"]
[Annotator "ChessBase"]
[PlyCount "108"]
[EventDate "2021.09.18"]
[EventType "team-tourn"]
[EventCountry "MKD"]
[SourceTitle "playchess.com"]
[Source "ChessBase"]
[SourceQuality "1"]
[TimeControl "40/5400+30:1800+30"]

1. d4 {[%emt 0:00:02]} Nf6 {[%emt 0:00:07]} 2. g3 {[%emt 0:00:02]} g6 {[%emt 0:
01:31]} 3. Bg2 {[%emt 0:00:05]} d5 {[%emt 0:00:06]} 4. c4 {[%emt 0:00:34]} Bg7
{[%emt 0:00:45]} 5. Qa4+ {[%emt 0:06:44]} c6 {[%emt 0:08:38]} 6. Nf3 {[%emt 0:
04:01]} O-O {[%emt 0:00:44]} 7. O-O {[%emt 0:00:07]} Nbd7 {[%emt 0:10:27]} 8.
cxd5 {[%emt 0:02:23]} Nb6 {[%emt 0:09:32]} 9. Qa3 {[%emt 0:00:36]} Nfxd5 {
[%emt 0:03:27]} 10. e4 {[%emt 0:26:17]} Nc7 {[%emt 0:01:40]} 11. Nc3 {[%emt 0:
00:08]} Bg4 {[%emt 0:02:09]} 12. Ne5 {[%emt 0:09:02]} Be6 {[%emt 0:04:39]} 13.
Rd1 {[%emt 0:02:29]} f6 {[%emt 0:21:44]} 14. Nf3 {[%emt 0:01:59]} Bf7 {[%emt 0:
02:00]} 15. b3 {[%emt 0:03:47]} Nc8 {[%emt 0:11:03]} 16. Bf4 {[%emt 0:05:57]}
Nd6 {[%emt 0:01:18]} 17. Rac1 {[%emt 0:00:34]} Ncb5 {[%emt 0:05:42]} 18. Nxb5 {
[%emt 0:00:06]} Nxb5 {[%emt 0:00:04]} 19. Qc5 {[%emt 0:05:45]} Qb6 {[%emt 0:04:
36]} 20. Qc2 {[%emt 0:08:41]} Rfd8 {[%emt 0:02:31]} 21. Be3 {[%emt 0:00:39]}
Qa5 {[%emt 0:01:10]} 22. Bf1 {[%emt 0:02:35]} Nd6 {[%emt 0:01:40]} 23. Be2 {
[%emt 0:05:44]} Rac8 {[%emt 0:02:47]} 24. Nd2 {[%emt 0:00:38]} Qc7 {[%emt 0:02:
30]} 25. Bf1 {[%emt 0:04:33]} Qd7 {[%emt 0:00:56]} 26. a4 {[%emt 0:00:25]} b6 {
[%emt 0:01:09]} 27. Nc4 {[%emt 0:03:00]} Nxc4 {[%emt 0:00:24]} 28. bxc4 {
[%emt 0:00:13]} Qe8 {[%emt 0:00:36]} 29. c5 {[%emt 0:01:14]} bxc5 {[%emt 0:00:
26]} 30. Qxc5 {[%emt 0:00:35]} Qd7 {[%emt 0:00:38]} 31. Ba6 {[%emt 0:00:51]}
Rb8 {[%emt 0:00:12]} 32. Bc4 {[%emt 0:02:25]} Rbc8 {[%emt 0:00:46]} 33. Kg2 {
[%emt 0:00:56]} f5 {[%emt 0:00:30]} 34. Bxf7+ {[%emt 0:03:18]} Kxf7 {[%emt 0:
00:03]} 35. Qc4+ {[%emt 0:00:48]} e6 {[%emt 0:00:57]} 36. f3 {[%emt 0:00:34]}
Bf6 {[%emt 0:00:20]} 37. g4 {[%emt 0:00:32]} Qe7 {[%emt 0:00:40]} 38. Qc5 {
[%emt 0:00:40]} Qxc5 {[%emt 0:00:29]} 39. dxc5 {[%emt 0:00:24]} Rxd1 {[%emt 0:
00:32]} 40. Rxd1 {[%emt 0:00:00]} Rd8 {[%emt 0:00:00]} 41. Rb1 {[%emt 0:06:56]}
Rd7 {[%emt 0:05:52]} 42. Kf2 {[%emt 0:01:43]} Bd8 {[%emt 0:12:48]} 43. Ke2 {
[%emt 0:01:04]} Kf6 {[%emt 0:01:00]} 44. g5+ {[%emt 0:06:18]} Kf7 {[%emt 0:02:
31]} 45. Rb8 {[%emt 0:02:39]} e5 {[%emt 0:04:26]} 46. h4 {[%emt 0:03:46]} Ba5 {
[%emt 0:02:00]} 47. Rh8 {[%emt 0:06:00]} Ke6 {[%emt 0:00:45]} 48. Rc8 {[%emt 0:
03:26]} Rc7 {[%emt 0:00:34]} 49. Rd8 {[%emt 0:01:13]} Rd7 {[%emt 0:00:37]} 50.
Rb8 {[%emt 0:01:28]} Rd8 {[%emt 0:00:47]} 51. Rb7 {[%emt 0:01:14]} Rd7 {
[%emt 0:00:06]} 52. Rb8 {[%emt 0:00:31]} Rd8 {[%emt 0:00:39]} 53. Rb7 {[%emt 0:
00:32]} Rd7 {[%emt 0:00:15]} 54. Rb8 {[%emt 0:00:39]} Rd8 1/2-1/2